Cogmind - Beta 17 @@@ ROGUE MODE // 2026.07.18 @ 13:12:16 Player: Venar246 Result: Destroyed by D-53 Grenadier with Mini Grenade Launcher Performance ------------- Evolutions (0) 0 Regions Visited (3) 600 Robots Destroyed (13) 65 Value Destroyed (236) 236 Prototype IDs (0) 0 Alien Tech Used (0) 0 Bonus (0) 0 TOTAL SCORE: 901 Bonus ------- None Cogmind --------- Core Integrity 0/250 Matter 300/300 Energy 99/100 System Corruption 0% Temperature Cool (0) Movement Core (150) Ox2 Location -8/Recycling Parts ------- > --- POWER (1) -------- (None) > --- PROPULSION (2) --- (None) > --- UTILITY (2) ------ Small Storage Unit > --- WEAPON (2) ------- Subdweller Laser > --- INVENTORY (8) ---- Machine Analyzer Improved Terrain Scanner Seismic Detector ECM Suite Medium Laser Assault Rifle Grenade Launcher Peak State ------------ > --- POWER ------------ Light Nuclear Core > --- PROPULSION ------- Light Treads Light Treads > --- UTILITY ---------- Small Storage Unit Seismic Detector > --- WEAPON ----------- Assault Rifle Assault Rifle > --- INVENTORY -------- Light Ion Engine Improved Terrain Scanner Seismic Detector ECM Suite Medium Laser Grenade Launcher [Rating: 9] Favorites ----------- Power Light Ion Engine Engine Light Ion Engine Power Core Light Nuclear Core Propulsion Light Treads Treads Light Treads Leg Aluminum Leg Utility Small Storage Unit Device Seismic Detector Storage Small Storage Unit Weapon Assault Rifle Energy Gun Subdweller Laser Ballistic Gun Assault Rifle Launcher Grenade Launcher Build | -11 -10 -10 -8 ------- Run | Yrd Mat Sub Rec Slots Evolved . | . . . . Power . | . . . . Propulsion . | . . . . Utility . | . . . . Weapon . | . . . . Parts Attached 15 | 9 3 3 . Power 3 | 1 1 1 . Engine 2 | 1 . 1 . Core 1 | . 1 . . Reactor . | . . . . Propulsion 4 | 4 . . . Treads 2 | 2 . . . Leg 2 | 2 . . . Wheel . | . . . . Hover . | . . . . Flight . | . . . . Utility 2 | 2 . . . Device 1 | 1 . . . Storage 1 | 1 . . . Processor . | . . . . Hackware . | . . . . Protection . | . . . . Artifact . | . . . . Weapon 6 | 2 2 2 . Energy Gun 2 | 1 . 1 . Energy Cannon . | . . . . Ballistic Gun 3 | 1 1 1 . Ballistic Cannon . | . . . . Launcher 1 | . 1 . . Special Weapon . | . . . . Impact Weapon . | . . . . Slashing Weapon . | . . . . Piercing Weapon . | . . . . Special Melee Weapon . | . . . . Unidentified Prototypes . | . . . . Parts Lost 7 | . 1 5 1 Power 3 | . 1 2 . Propulsion 2 | . . 2 . Utility 1 | . . . 1 Weapon 1 | . . 1 . Highest Loss Streak 4 | . 1 4 1 To Critical Strikes . | . . . . Average Backups 5 | 1 5 7 7 Power . | . 1 . . Propulsion . | . . . . Utility 2 | . 2 3 4 Weapon 2 | . 2 3 3 Tool/Special . | . . . . Unused Backups 4 | . . . 4 Power . | . . . . Propulsion . | . . . . Utility 4 | . . . 4 Weapon . | . . . . Tool/Special . | . . . . Average Slot Usage (%) 80 | . 99 94 42 Engine 4 | . 9 3 . Core 3 | . 4 7 . Treads 19 | . 28 27 . Device 14 | . 14 14 14 Storage 14 | . 14 14 14 Energy Gun 8 | . 7 5 14 Ballistic Gun 14 | . 19 21 . Peak Build Rating 9 | 7 9 9 5 Average Rating 6 | 5 7 8 4 On Entrance 5 | . 7 9 5 Avg Prop Armor Cover (%) . | . . . . Naked Turns . | . . . . Heaviest Build 16 | 13 15 16 10 Greatest Support 40 | 40 40 40 3 Greatest Overweight (x) 3 | 2 . 3 3 Average Overweight (x) . | . . . 2 Largest Inventory Capacity 8 | 8 8 8 8 Average Capacity 7 | 6 8 8 8 Most Carried 8 | 3 7 8 7 Average Carried 5 | 1 5 7 7 Final Capacity 8 | 8 8 8 8 Final Carried 7 | 3 7 7 7 Class Distribution -------------------- 100% | Mutant Dominant Class ---------------- Mutant | -10/Materials Mutant | -10/Subcaves Mutant | -8/Recycling Resources | -11 -10 -10 -8 ----------- Run | Yrd Mat Sub Rec Matter Collected 537 | 251 157 129 . Remotely . | . . . . Salvage Created 302 | 54 147 101 . Parts 26 | 5 13 8 . Haulers Intercepted . | . . . . Recyclers Shooed . | . . . . Parts Field Recycled . | . . . . Retrieved Matter . | . . . . Parts Self-Destructed 15 | . . 15 . Prevented . | . . . . Parts Restored . | . . . . Kills | -11 -10 -10 -8 ------- Run | Yrd Mat Sub Rec Combat Hostiles Destroyed 10 | . 6 4 . Guns 7 | . 3 4 . AOE 3 | . 3 . . Classes Destroyed 4 | 1 2 1 . Tunneler 3 | 3 . . . Swarmer 6 | . 3 3 . Grunt 3 | . 3 . . Subdweller 1 | . . 1 . Best Kill Streak 3 | 2 3 3 . Combat Bots Only 3 | . 3 3 . Max Kills in Single Turn 3 | 1 3 1 . Gunslinging . | . . . . Exploded 3 | . 3 . . Melee . | . . . . Uniques/NPCs Destroyed . | . . . . Combat | -11 -10 -10 -8 -------- Run | Yrd Mat Sub Rec Hostile Shots Fired 132 | . 23 105 4 Missed 49 | . 6 43 . Hits 83 | . 17 62 4 Projectile 83 | . 17 62 4 AOE 3 | . . . 3 Damage Taken 1015 | . 223 652 140 Core 271 | . 23 159 89 Absorbed by Shields . | . . . . Core Remaining (%) 100 | 100 . . . Volleys Fired 50 | 8 15 27 . Largest 2 | 2 2 2 . Hottest 80 | 70 70 80 . Shots Fired 100 | 16 30 54 . Gun 97 | 16 29 52 . Cannon . | . . . . Launcher 3 | . 1 2 . Special . | . . . . Kinetic 72 | 8 23 41 . Thermal 25 | 8 6 11 . Explosive 3 | . 1 2 . Electromagnetic . | . . . . Robot Hit Streak 20 | 2 10 20 . Robot Miss Streak 5 | 3 2 5 . Penetration Max . | . . . . Secondary Targets . | . . . . Shots Hit Robots 68 | 8 23 37 . Core Hits 22 | 4 9 9 . Critical Kills . | . . . . Critical Parts Destroyed 2 | . 2 . . Critical Strikes 2 | . 2 . . Destroy 2 | . 2 . . Melee Attacks . | . . . . Impact . | . . . . Slashing . | . . . . Piercing . | . . . . Sneak Attacks . | . . . . Combat Hostiles . | . . . . Follow-up Attacks . | . . . . Damage Inflicted 1091 | 103 440 548 . Guns 821 | 102 302 417 . Cannons . | . . . . Explosions 257 | . 126 131 . Melee . | . . . . Ramming 13 | 1 12 . . Kinetic 590 | 37 227 326 . Thermal 231 | 65 75 91 . Explosive 257 | . 126 131 . Electromagnetic . | . . . . Impact . | . . . . Slashing . | . . . . Piercing . | . . . . Highest Corruption . | . . . . Average Corruption . | . . . . Corruption Purged . | . . . . Corruption Blocked . | . . . . Overload Shots . | . . . . Overflow Damage 26 | . 26 . . Projectiles . | . . . . Explosions 26 | . 26 . . Melee . | . . . . Knockbacks . | . . . . Impact . | . . . . Kinetic . | . . . . Secondary . | . . . . Self-Inflicted Damage . | . . . . Shots . | . . . . Rammed 4 | 1 3 . . Targets Rammed 4 | 1 3 . . Kicked . | . . . . Crushed . | . . . . Highest Temperature 54 | 45 54 30 . Average Temperature 18 | 18 17 25 . Received Heat Transfer 414 | . 114 300 . Siege Activations . | . . . . Martial Activations . | . . . . Shielding Activations . | . . . . Robots Disrupted . | . . . . Combat Hostiles . | . . . . Robots Corrupted . | . . . . Combat Hostiles . | . . . . Parts Fried . | . . . . Impact Corruptions . | . . . . Robots Melted . | . . . . Combat Hostiles . | . . . . Parts Melted 1 | 1 . . . Heat Transferred 507 | 185 222 100 . Parts Sabotaged . | . . . . Parts Stolen . | . . . . Parts Stripped . | . . . . Power Chain Reactions . | . . . . Alert | -11 -10 -10 -8 ------- Run | Yrd Mat Sub Rec Maximum Alert Level . | . . . . Low Security (%) 100 | 100 100 . 100 Level 1 . | . . . . Level 2 . | . . . . Level 3 . | . . . . Level 4 . | . . . . Level 5 . | . . . . High Security . | . . . . Max Security . | . . . . Peak Influence 111 | 5 111 . 24 Initial 24 | . . . 24 Average 19 | . 39 . 2 Influence Increases 294 | 15 159 120 . Destroy 0b10 Robot/C 180 | . 120 60 . Destroy 0b10 Robot/NC 15 | 15 . . . Destroy Leader 30 | . 30 . . Successful Hack 8 | . 8 . . Destroy Structure 1 | . 1 . . Lose Combat Pursuer 60 | . . 60 . Influence Decreases 294 | 15 108 121 50 Entered New Map 51 | . . 25 26 Time Decay 193 | 15 98 56 24 Lost Part 50 | . 10 40 . Squads Dispatched 2 | . 2 . . Investigation . | . . . . Extermination . | . . . . Reinforcement 2 | . 2 . . Assault . | . . . . Garrison . | . . . . Intercept . | . . . . Searches Triggered . | . . . . Construction Impeded . | . . . . Haulers Reinforced . | . . . . Active Scanning Responses . | . . . . Cargo Convoy Interrupts . | . . . . Stealth | -11 -10 -10 -8 --------- Run | Yrd Mat Sub Rec Distress Signals 2 | . 2 . . Communications Jammed . | . . . . Distress Signals . | . . . . Times Spotted 24 | . 11 11 2 Peak Tracking Total 5 | . 5 4 2 Tactical Retreats 2 | . . 2 . Traps | -11 -10 -10 -8 ------- Run | Yrd Mat Sub Rec Traps Triggered 1 | . . 1 . Indirectly . | . . . . Trap Hack Attempts . | . . . . Triggered . | . . . . Disarmed . | . . . . Reprogrammed . | . . . . Reused . | . . . . Traps Extracted . | . . . . Installed . | . . . . Triggered . | . . . . Machines | -11 -10 -10 -8 ---------- Run | Yrd Mat Sub Rec Machines Disabled 2 | . . 2 . Max in Single Turn 1 | . . 1 . Machines Repaired . | . . . . Machines Dismantled . | . . . . Machines Sabotaged . | . . . . Overloaded Fab Kills . | . . . . Hacking | -11 -10 -10 -8 --------- Run | Yrd Mat Sub Rec Machines Accessed 2 | . 1 . 1 Terminals 2 | . 1 . 1 Fabricators . | . . . . Repair Stations . | . . . . Recycling Units . | . . . . Scanalyzers . | . . . . Garrison Access . | . . . . Total Hacks 5 | . 2 . 3 Successful 3 | . 1 . 2 Failed 2 | . 1 . 1 Catastrophic . | . . . . Database Lockouts . | . . . . Manual 2 | . 2 . . Terminals 5 | . 2 . 3 Fabricators . | . . . . Repair Stations . | . . . . Recycling Units . | . . . . Scanalyzers . | . . . . Garrison Access . | . . . . Terminal Hacks 3 | . 1 . 2 Record 1 | . . . 1 Branch Access Points 1 | . 1 . . Zone Layout 1 | . . . 1 Fabricator Hacks . | . . . . Repair Station Hacks . | . . . . Recycling Unit Hacks . | . . . . Scanalyzer . | . . . . Garrison Access Hacks . | . . . . Unauthorized Hacks . | . . . . Terminals . | . . . . Fabricators . | . . . . Repair Stations . | . . . . Recycling Units . | . . . . Scanalyzers . | . . . . Garrison Access . | . . . . Data Cores Recovered . | . . . . Used . | . . . . Hacking Detections 1 | . 1 . . Full Trace Events . | . . . . Feedback Events . | . . . . Feedback Blocked . | . . . . Robot Schematics Acquired . | . . . . Robots Built . | . . . . Authchips . | . . . . Time . | . . . . Total Robot Build Rating . | . . . . Part Schematics Acquired . | . . . . Parts Built . | . . . . Authchips . | . . . . Time . | . . . . Total Part Build Rating . | . . . . Part Studies Acquired . | . . . . Parts Repaired . | . . . . Time . | . . . . Parts Recycled . | . . . . Recycled Matter . | . . . . Retrieved Matter . | . . . . Retrieved Components . | . . . . Parts Scanalyzed . | . . . . Part Schematics Acquired . | . . . . Parts Damaged . | . . . . Bothacking | -11 -10 -10 -8 ------------ Run | Yrd Mat Sub Rec Used RIF Installer . | . . . . Robots Hacked . | . . . . Non-combat . | . . . . Combat . | . . . . Robot Hacks Applied . | . . . . Relay Couplers Released . | . . . . Fabnet Peak Effective % . | . . . . Robots Rewired 1 | . . . 1 Allies Hacked . | . . . . Hacks Repelled . | . . . . Allies | -11 -10 -10 -8 -------- Run | Yrd Mat Sub Rec Total Allies 1 | . . . 1 Largest Group . | . . . . Highest-Rated Group . | . . . . Highest-Rated Ally . | . . . . Total Orders . | . . . . Ally Attacks 1 | . . . 1 Total Damage . | . . . . Kills . | . . . . Allies Corrupted . | . . . . Allies Melted . | . . . . Intel | -11 -10 -10 -8 ------- Run | Yrd Mat Sub Rec Active Infowar (turns) 938 | 25 351 281 281 Seismic 938 | 25 351 281 281 Robot Analysis Total . | . . . . Derelict Logs Recovered . | . . . . Drone Launches . | . . . . Drone Recoveries . | . . . . Exploration | -11 -10 -10 -8 ------------- Run | Yrd Mat Sub Rec Turns Passed 1062 | 147 351 281 283 Spaces Moved 481 | 72 145 122 142 Core 155 | 11 . 2 142 Treads 320 | 55 145 120 . Legs 6 | 6 . . . Wheels . | . . . . Hover . | . . . . Flight . | . . . . Fastest Speed 50 | 50 160 160 150 Average Speed 169 | 147 160 160 199 Slowest Speed 200 | 160 160 200 200 Overloaded Moves . | . . . . Propulsion Burnouts . | . . . . Robots Hopped . | . . . . Potential Cave-ins . | . . . . Cave-ins Triggered . | . . . . Exploration Rate (%) 21 | 5 40 15 25 Regions Visited 3 Branch Regions 2 Pre-discovered Areas . | . . . . Known Exits Taken . | . . . . Unknown Exits Taken 3 | 1 1 1 . Scrap Searched . | . . . . Spaces Dug . | . . . . Terrain Destroyed 12 | . . 12 . Melee . | . . . . Projectile . | . . . . AOE 12 | . . 12 . Terrain Rammed . | . . . . Walls Destroyed . | . . . . Machines Disabled . | . . . . Actions | -11 -10 -10 -8 --------- Run | Yrd Mat Sub Rec Total 620 | 92 231 154 143 Wait 63 | . 62 1 . Move 478 | 71 144 121 142 Hop . | . . . . Pick Up 8 | 3 4 1 . Fast Attach 8 | 7 1 . . Attach 1 | . . 1 . Detach . | . . . . Swap 7 | 2 2 3 . Drop . | . . . . Fire 50 | 8 15 27 . Melee . | . . . . Ram . | . . . . Kick . | . . . . Crush 4 | 1 3 . . Escape Stasis . | . . . . Rewire 1 | . . . 1 Trap . | . . . . Miscellaneous . | . . . . Route ------- -11/Scrapyard -10/Materials (discovered 3 exits: Min x2 / [*Sub]) -10/Subcaves -8/Recycling History --------- Turn | Location | Event 22 | -11/Scrapyard | Discovered new exit (range 16) 148 | -11/Scrapyard | Entered Materials 202 | -10/Materials | Identified exit to Mines 301 | -10/Materials | Build established: Mutant 485 | -10/Materials | Discovered new exit (range 8) 499 | -10/Materials | Entered Subcaves 500 | -10/Subcaves | Approached by a straggling Scientist 730 | -10/Subcaves | Core integrity fell below 50% 751 | -10/Subcaves | Discovered new exit (range 11) 780 | -10/Subcaves | Entered Recycling 807 | -8/Recycling | Lost 4 parts (1p2n1w) 1060 | -8/Recycling | Core integrity fell below 20% 1063 | -8/Recycling | Destroyed by D-53 Grenadier with Mini Grenade Launcher Last Messages --------------- and destabilized the environment to the point that global-scale technology was necessary to maintain an increasingly fragile planet. >>Layout(Zone) Retrieving Zone 4T layout... Downloaded map data. 01059_ D-53 Grenadier springs to life. 01059_ K-01 Serf destroyed. 01059_ G-47 Trooper destroyed. 01060_ S-10 Pest springs to life. 01060_ Attempting to rewire G-47 Trooper. 01060_ G-47 Trooper rewired. 01061_ U-05 Engineer lays Concrete. 01061_ Seismic Detector destroyed. 01061_ T-07 Excavator destroyed. 01061_ R-06 Scavenger destroyed. 01061_ Y-45 Defender destroyed. 01061_ I-25 Savior destroyed. 01061_ R-06 Scavenger destroyed. 01063_ U-05 Engineer lays Concrete. Map ----- +----------------------------------------------------+ | ?????????????????????????????????????????????????? | | ?????????????????????????????????????????????????? | | ?????????????????????????????????????????????????? | | ?????????????????????????????????????????????????? | | ?????????????????????????????????????????????????? | | ?????????????????????????????????????????????????? | | ?????????????????????????????????????????????????? | | ?????????????????????????????????????????????????? | | ?????????????????????????????????????????????????? | | ?????????????????????????????????????????????????? | | ?????????????????????????????????????????????????? | | ?????????????????????????????????????????????????? | | ???????????????????????????? #?????????????????? | | ???????????????????????????? #?????????????????? | | ???????????????????????????? #?????????????????? | | ??????????????????????###### #?????????????????? | | ??????????????????????#u d# #?????????????????? | | ??????????????????????# # #?????????????????? | | ??????????????????????#Y # #?????????????????? | | ?????????????????? ## aka# #????#"Y #?? | | ?????????????????? ##=aYi# #????#"" #?? | | ?????????????????? ##= u# #????# #?? | | ?????????????????? ## u a#= #????# #?? | | ?????????????????? ##s%% #% #????# #?? | | ?????????????????? ##% %g* #????# #?? | | ??????????????????##### @! #????########## #?? | | ??????????????????????# ! #?????????????# ##? | | ??????????????????????#t%%d ###########???# # ? | | ??????????????????????# d% #???# # ? | | ??????????????????????## # #???# # ? | | #####################??## ## #???# # ? | | # #??######+########## #?### # ? | | # ##?# #??# ### # # ? | | # #?# """ #??# + ? | | # ##?# "T" #??# #### ? | | # #??# """ #??# #### ? | | # #??# """ #??# ! ##"? | | #+########+###+##+###### """ #??# ! ##"? | | # #?????# / #### ! ##"? | | # #?????# # """ """ + #### ? | | # #?????# # """ """ ####### #??##? | | # #?????# # """ """ #?????# #????? | | # #?????# """ """ # #?????# #??##? | | # #?????# """ """ # #?????# #??# ? | | # #?????# """ """ #################### #### | | # #?????# """ """ + | | # #?????# """ """ #### #!! | | # ####### #??# # | | #??# +! | | #??# # | +----------------------------------------------------+ Best States ------------- Heat Dissipation 25 Energy Generation 14 Energy Capacity 160 Matter Stores 300 Matter Capacity 300 Sight Range 16 Terrain Scan Density 10 Evasion (%) 40 Recoil Reduction 2 Item Schematics ----------------- None Robot Schematics ------------------ None Fabricated ------------ Nothing Repaired ---------- Nothing Studied --------- None Alien Tech Used ----------------- None Achievements -------------- None Challenges ------------ None Game ------ Seed VortexLightDriveblaster Manual? 0 Play Time 00:07:50 Cumulative 59.7 hours Start 2026.07.18 @ 13:01:56 End 2026.07.18 @ 13:12:16 Sessions 1 Manual Loads 0 Difficulty Rogue Special Mode None Game No. 99 Rogue 99 Adventurer 0 Explorer 0 Win Type - Total 1 Types 1/0/0/0/0/0/0/0/0/0 Lore% 30 Gallery% 37 Achievement% 28 Wizard Run 0 Options --------- Layout 1 ASCII 0 Keyboard 0 Movement Arrows Keybinds 0 Fullscreen 1 Font 32/SmallcapsGlow Map View 50x35 Zoom Use 0% Tactical HUD 1 Map Filters NONE Filters NONE Steam 1 RUN: 813c1f60-4301-4966-abe4-ad93825012e4